bitfinex/quotes_SOLUSD_20240607
["timestamp","ask_amount","ask_price","bid_price","bid_amount"]
[1717767153493,8.6029,171.31,171.25,4.321]
[1717767154606,6.2246,171.29,171.27,2.1603]
[1717767155282,2.1601,171.29,171.25,2.1605]
[1717767155500,2.1602,171.28,171.25,2.1605]
[1717767155683,2.1602,171.28,171.24,2.1606]
[1717767155883,6.0159,171.32,171.22,34.98]
[1717767156079,2.1598,171.31,171.28,2.1601]
[1717767156279,6.0159,171.32,171.27,2.1602]
[1717767156481,2.1599,171.31,171.27,2.1602]
[1717767156680,2.1599,171.3,171.27,2.1602]
[1717767156889,2.1599,171.31,171.27,2.1602]
[1717767157290,2.1599,171.31,171.25,4.321]
[1717767157574,8.1756,171.32,171.29,2.16]
[1717767158076,6.234,171.35,171.25,120.0]
[1717767158295,2.1593,171.35,171.29,4.32]
[1717767158603,2.1594,171.34,171.31,2.1597]
[1717767158905,2.1594,171.34,171.3,2.1598]
[1717767159106,8.3933,171.35,171.31,2.1598]
[1717767159292,140.0,171.56,171.28,120.0]
[1717767159293,6.2028,171.39,171.28,120.0]
[1717767159475,2.159,171.38,171.34,2.1594]
[1717767159881,2.1588,171.39,171.35,2.1593]
[1717767160090,6.2028,171.4,171.24,11.92558216]
[1717767160091,8.3615,171.4,171.36,2.1591]
[1717767160290,6.2028,171.4,171.33,2.1595]
[1717767160478,2.1589,171.39,171.32,4.3193]
[1717767160791,2.1589,171.39,171.35,2.1592]
[1717767161607,8.3615,171.4,171.36,2.1591]
[1717767162385,8.3615,171.4,171.35,2.1592]
[1717767162695,8.3615,171.4,171.36,2.1591]
[1717767163380,2.1587,171.4,171.36,2.1591]
[1717767164108,2.1588,171.39,171.35,2.1592]
[1717767164482,2.1587,171.4,171.35,2.1592]
[1717767164680,2.1587,171.4,171.36,2.1591]
[1717767164900,2.1588,171.39,171.35,2.1592]
[1717767165909,2.1587,171.4,171.36,2.1591]
[1717767166408,2.1588,171.39,171.36,2.1591]
[1717767167282,4.3168,171.42,171.36,2.1591]
[1717767167283,2.1587,171.4,171.36,2.1591]
[1717767167791,2.1587,171.4,171.37,2.159]
[1717767168203,2.1588,171.39,171.36,2.1591]
[1717767168405,4.3168,171.42,171.36,2.1591]
[1717767168795,2.1587,171.4,171.37,2.159]
[1717767168997,2.1586,171.41,171.37,2.159]
[1717767169403,2.1587,171.4,171.37,2.159]
[1717767169609,2.1587,171.4,171.36,2.1591]
[1717767170010,0.3454,171.43,171.32,4.3192]
[1717767170206,2.1589,171.39,171.33,4.3191]
[1717767170780,2.1587,171.4,171.36,2.1591]
[1717767171005,2.1588,171.39,171.36,2.1591]
[1717767171313,2.1588,171.39,171.34,4.3188]
[1717767171504,2.1588,171.39,171.35,2.1592]
[1717767172220,2.1588,171.39,171.36,2.1591]
[1717767172430,2.1587,171.4,171.36,2.1591]
[1717767174007,2.1587,171.4,171.37,2.159]
[1717767174315,2.1587,171.4,171.34,4.3188]
[1717767178597,2.1588,171.39,171.35,2.1592]
[1717767178799,2.1587,171.4,171.36,2.1591]
[1717767179295,8.5782,171.4,171.36,2.1591]
[1717767180504,6.4195,171.4,171.31,34.98]
[1717767180709,6.4195,171.39,171.3,41.1475]
[1717767180908,2.1589,171.38,171.3,41.1475]
[1717767181099,6.4195,171.38,171.34,2.1593]
[1717767181309,8.5784,171.38,171.34,2.1593]
[1717767181706,2.159,171.37,171.34,2.1593]
[1717767182022,8.5784,171.38,171.32,4.3193]
[1717767182320,6.4195,171.38,171.33,2.1594]
[1717767182502,8.2214,171.38,171.35,2.1593]
[1717767182708,8.2214,171.38,171.32,4.3193]
[1717767183426,2.159,171.37,171.33,2.1594]
[1717767183800,8.1722,171.37,171.34,2.1594]
[1717767184002,2.159,171.38,171.35,2.1593]
[1717767184317,6.0132,171.41,171.29,154.98]
[1717767184516,8.4539,171.41,171.34,4.3188]
[1717767184823,2.1588,171.4,171.37,2.159]
[1717767185519,8.4539,171.41,171.37,2.159]
[1717767185916,2.1586,171.4,171.37,2.159]
[1717767186123,2.1586,171.4,171.32,0.67827399]
[1717767186124,2.5037,171.43,171.39,2.1588]
[1717767186604,2.1584,171.42,171.38,2.1588]
[1717767186922,2.1585,171.41,171.37,2.159]
[1717767188102,0.3454,171.43,171.33,120.0]
[1717767188314,2.5037,171.43,171.39,2.1587]
[1717767188830,2.5037,171.43,171.4,2.1586]
[1717767189038,0.3454,171.43,171.4,2.1586]
[1717767189196,2.5037,171.43,171.4,2.1586]
[1717767190810,2.5037,171.43,171.39,2.1587]
[1717767191524,2.1584,171.42,171.39,2.1587]
[1717767192048,2.5037,171.43,171.39,2.1587]
[1717767193116,2.1584,171.42,171.39,2.1587]
[1717767193430,0.3454,171.43,171.4,2.1586]
[1717767193625,0.3454,171.43,171.41,2.1585]
[1717767193829,0.3454,171.43,171.36,154.98]
[1717767194017,0.3454,171.43,171.42,2.1584]
[1717767194841,0.3454,171.43,171.41,2.1585]
[1717767195013,0.3454,171.43,171.36,154.98]
[1717767195014,0.3454,171.43,171.4,2.1586]
[1717767195208,0.3454,171.43,171.41,2.1585]
[1717767195410,0.3454,171.43,171.42,2.1584]
[1717767195815,0.3454,171.43,171.41,2.1585]
[1717767196725,0.3454,171.43,171.42,2.1584]
[1717767198246,0.3454,171.43,171.4,2.1586]
[1717767198551,0.3454,171.43,171.41,2.1585]
[1717767199757,0.3454,171.43,171.42,2.1584]
[1717767200151,0.3454,171.43,171.42,6.4752]
[1717767200919,0.3454,171.43,171.42,132.829]
[1717767201524,0.3454,171.43,171.42,6.4752]
[1717767204522,0.3454,171.43,171.42,126.4752]
[1717767204722,0.3454,171.43,171.42,167.5545]
[1717767206120,0.3454,171.43,171.42,161.4552]
[1717767206552,0.3454,171.43,171.42,41.4552]
[1717767213356,0.3454,171.43,171.42,2.1584]
[1717767214953,0.3454,171.43,171.42,6.4752]
[1717767217431,0.3454,171.43,171.42,2.1584]
[1717767221563,0.3454,171.43,171.42,6.4752]
[1717767222360,0.3454,171.43,171.42,2.1584]
[1717767228874,0.3454,171.43,171.42,2.1584]
[1717767231678,0.3454,171.43,171.42,6.4752]
[1717767236579,0.3454,171.43,171.42,2.1584]
[1717767237861,0.3454,171.43,171.41,2.1584]
[1717767238061,0.3454,171.43,171.42,2.1584]
[1717767238361,0.3454,171.43,171.41,2.1585]
[1717767238562,0.3454,171.43,171.4,4.3173]
[1717767238876,0.3454,171.43,171.41,2.1585]
[1717767239079,0.3454,171.43,171.37,34.98]
[1717767239080,0.3454,171.43,171.38,4.3176]
[1717767239586,2.1584,171.42,171.39,2.1587]
[1717767239871,6.0315,171.42,171.39,2.1587]
[1717767240905,6.0315,171.42,171.4,2.1586]
[1717767241070,6.0315,171.42,171.39,2.1587]
[1717767242570,8.1899,171.42,171.39,2.1587]
[1717767242878,6.0315,171.42,171.37,4.3181]
[1717767243078,6.0315,171.42,171.4,2.1586]
[1717767245099,6.0315,171.42,171.41,2.1585]
[1717767245281,0.3454,171.43,171.42,2.1584]
[1717767246293,0.3454,171.43,171.42,6.4752]
[1717767246680,0.3454,171.43,171.42,132.7721]
[1717767248201,0.3454,171.43,171.42,167.7521]
[1717767248505,0.3454,171.43,171.42,183.7246]
[1717767249072,0.3454,171.43,171.42,203.7246]
[1717767251004,2.1571,171.52,171.47,2.1577]
[1717767251174,8.2376,171.52,171.47,2.1577]
[1717767251681,8.2376,171.52,171.48,2.1576]
[1717767252683,2.1571,171.52,171.49,2.1575]
[1717767252895,2.1571,171.53,171.49,2.1575]
[1717767255997,2.1571,171.52,171.46,4.3157]
[1717767256202,2.1571,171.52,171.48,2.1576]
[1717767256574,2.1573,171.51,171.47,2.1577]
[1717767256777,2.1571,171.53,171.46,4.3157]
[1717767256985,2.1571,171.53,171.49,2.1574]
[1717767257797,2.1571,171.53,171.5,2.1574]
[1717767258098,2.1571,171.53,171.49,2.1574]
[1717767258302,2.1571,171.52,171.49,2.1574]
[1717767258876,21.5135,171.56,171.44,154.98]
[1717767259096,0.3452273,171.55,171.44,154.98]
[1717767259622,0.3452273,171.55,171.43,34.98]
[1717767259801,2.1576,171.49,171.45,2.1579]
[1717767260302,2.1576,171.48,171.45,2.1579]
[1717767260989,2.1576,171.48,171.43,39.2964]
[1717767260990,0.3452273,171.55,171.44,2.1581]
[1717767261186,20.3452273,171.55,171.42,2.1583]
[1717767261386,2.1581,171.45,171.41,2.1584]
[1717767261597,2.1582,171.44,171.4,2.1586]
[1717767262286,2.1582,171.44,171.41,2.1585]
[1717767262484,2.1581,171.45,171.41,2.1585]
[1717767263295,2.1581,171.45,171.42,2.1584]
[1717767263496,2.1581,171.45,171.41,2.1584]
[1717767265307,2.1581,171.44,171.41,2.1584]
[1717767265683,2.1581,171.44,171.37,34.98]
[1717767265890,2.1583,171.43,171.39,2.1588]
[1717767267797,4.3161,171.45,171.35,4.3186]
[1717767267798,2.1584,171.42,171.35,4.3186]
[1717767270097,2.1583,171.43,171.36,4.3183]
[1717767270408,2.1584,171.42,171.38,2.1589]
[1717767270790,2.1585,171.41,171.37,2.159]
[1717767271008,8.6564,171.42,171.38,2.1589]
[1717767271208,2.1587,171.4,171.33,39.299]
[1717767271407,2.1587,171.4,171.37,2.159]
[1717767271701,2.1586,171.41,171.37,2.159]
[1717767271900,8.6312,171.41,171.37,2.159]
[1717767272322,8.6313,171.4,171.36,2.1591]
[1717767273508,10.7916,171.43,171.35,2.1592]
[1717767273509,18.3046,171.39,171.35,2.1592]
[1717767273721,24.6432,171.39,171.35,2.1592]
[1717767274528,6.2919,171.39,171.29,34.98]
[1717767274710,6.8220273,171.38,171.27,34.98]
[1717767274913,2.1594,171.34,171.3,2.1598]
[1717767275136,2.1594,171.34,171.27,34.98]
[1717767275137,6.8229273,171.36,171.29,2.16]
[1717767275305,6.2046,171.35,171.3,2.1599]
[1717767275507,2.1595,171.34,171.3,2.1599]
[1717767275812,2.1595,171.34,171.29,2.16]
[1717767275813,2.1595,171.33,171.29,2.16]
[1717767276126,2.1595,171.33,171.23,34.98]
[1717767276127,0.3452273,171.33,171.23,34.98]
[1717767276303,2.1601,171.29,171.24,2.1606]
[1717767276504,2.1601,171.29,171.23,2.1607]
[1717767276505,6.6471,171.29,171.23,2.1607]
[1717767276704,6.6471,171.29,171.19,97.22148384]
[1717767276705,2.1605,171.26,171.19,4.3225]
[1717767276929,8.399,171.25,171.21,2.161]
[1717767277139,6.2385,171.25,171.21,2.161]
[1717767277436,6.2385,171.25,171.22,2.1609]
[1717767278806,6.2385,171.25,171.21,2.161]
[1717767279210,6.0659,171.24,171.21,2.161]
[1717767279937,8.5495,171.27,171.23,2.1608]
[1717767281038,8.5016,171.26,171.22,2.1609]
[1717767281817,2.1605,171.25,171.21,2.161]
[1717767282017,8.8017,171.25,171.21,2.161]
[1717767282320,8.8017,171.25,171.15,30.86871958]
[1717767282321,6.6412,171.25,171.15,30.86871958]
[1717767282520,8.8018,171.25,171.15,30.86871958]
[1717767283030,6.4457,171.24,171.21,2.161]
[1717767283731,8.6064,171.24,171.2,2.1611]
[1717767283941,8.6064,171.24,171.21,2.161]
[1717767283942,6.4457,171.24,171.21,2.161]
[1717767285209,2.1606,171.25,171.21,2.161]
[1717767285841,8.6435,171.25,171.21,2.161]
[1717767286955,2.1602,171.28,171.24,2.1606]
[1717767287632,2.1603,171.27,171.23,2.1607]
[1717767288141,2.1604,171.26,171.23,2.1607]
[1717767288521,2.1604,171.26,171.21,4.322]
[1717767288522,2.1604,171.26,171.22,2.1609]
[1717767288722,2.1605,171.25,171.19,4.3225]
[1717767288928,2.1607,171.24,171.15,30.86871958]
[1717767289134,2.1609,171.23,171.14,182.48196601]
[1717767289442,8.3359,171.23,171.19,2.1612]
[1717767290260,8.3359,171.23,171.2,2.1612]
[1717767290430,6.175,171.23,171.2,2.1612]
[1717767290760,8.3358,171.23,171.2,2.1612]
[1717767290959,6.175,171.23,171.2,2.1612]
[1717767291352,8.3358,171.23,171.2,2.1612]
[1717767291857,8.3358,171.23,171.14,97.46196601]
[1717767291858,2.1609,171.22,171.15,4.3235]
[1717767292049,2.1609,171.22,171.16,4.3233]
[1717767292357,8.3359,171.23,171.19,2.1613]
[1717767292668,8.3359,171.23,171.19,2.1612]
[1717767293159,8.7692,171.22,171.18,2.1614]
[1717767293541,6.6083,171.2,171.17,2.1615]
[1717767294162,8.7695,171.2,171.16,2.1616]
[1717767294336,8.7696,171.19,171.15,2.1617]
[1717767295364,2.1615,171.18,171.13,2.1619]
[1717767295577,2.1615,171.18,171.12,4.3242]
[1717767295868,2.1616,171.17,171.1,4.3248]
[1717767296072,2.1617,171.16,171.1,4.3248]
[1717767296383,2.1617,171.16,171.12,2.1621]
[1717767296557,8.7366,171.16,171.12,2.1621]
[1717767296957,8.7366,171.16,171.11,2.1622]
[1717767297158,8.7366,171.16,171.09,0.8078376]
[1717767297391,6.5749,171.16,171.11,2.1623]
[1717767297587,8.7366,171.16,171.12,2.1622]
[1717767299377,6.5749,171.16,171.09,7.2955376]
[1717767299762,2.1616,171.17,171.09,7.2955376]
[1717767300060,2.1613,171.19,171.15,2.1617]
[1717767300371,4.3219,171.22,171.11,34.98]
[1717767300576,2.1614,171.19,171.15,2.1617]
[1717767300759,6.0453,171.16,171.09,0.8078376]
[1717767300968,8.207,171.16,171.12,2.1621]
[1717767301171,8.7426,171.15,171.11,2.1623]
[1717767301369,8.7426,171.15,171.09,0.8078376]
[1717767301370,6.4847,171.17,171.1,2.1624]
[1717767301672,6.5807,171.14,171.12,2.1622]
[1717767301873,20.2657,171.18,171.09,5.1329376]
[1717767301874,8.6694,171.17,171.13,2.162]
[1717767302078,2.1617,171.16,171.13,2.162]
[1717767302283,6.5079,171.17,171.13,2.162]
[1717767302467,2.1618,171.15,171.1,4.3248]
[1717767302661,2.1618,171.15,171.12,2.1622]
[1717767302863,2.1619,171.15,171.09,0.8078376]
[1717767303379,8.6695,171.17,171.13,2.162]
[1717767303769,6.5079,171.17,171.09,0.8078376]
[1717767303977,2.1614,171.19,171.15,2.1618]
[1717767304171,2.1612,171.2,171.13,4.3241]
[1717767304379,2.1612,171.2,171.16,2.1617]
[1717767304700,6.5168,171.19,171.14,4.3239]
[1717767304869,6.5168,171.19,171.16,2.1616]
[1717767305069,8.6781,171.19,171.15,2.1617]
[1717767305275,8.6781,171.19,171.16,2.1617]
[1717767305276,6.5168,171.19,171.16,2.1617]
[1717767306079,24.3262,171.19,171.15,2.1618]
[1717767306390,6.0617,171.19,171.16,2.1617]
[1717767306594,22.1649,171.23,171.12,120.0]
[1717767306890,2.1608,171.23,171.19,2.1612]
[1717767307690,2.1607,171.24,171.2,2.1611]
[1717767307984,6.5645,171.3,171.16,154.98]
[1717767308168,4.3201,171.29,171.22,2.1608]
[1717767308369,2.1604,171.26,171.22,2.1608]
[1717767308586,4.3201,171.29,171.19,4.3224]
[1717767308764,2.1605,171.26,171.21,2.161]
[1717767308965,2.1605,171.26,171.22,2.1609]
[1717767309177,4.3201,171.29,171.19,4.3224]
[1717767309178,2.1605,171.25,171.21,2.161]
[1717767309561,15.2044,171.3,171.2,4.3222]
[1717767309778,2.1602,171.28,171.2,4.3222]
[1717767310092,2.1603,171.27,171.2,4.3222]
[1717767310393,2.1605,171.26,171.22,2.1608]
[1717767310570,2.1603,171.27,171.23,2.1608]
[1717767311274,2.1603,171.27,171.2,4.3222]
[1717767311275,2.1604,171.26,171.22,2.1609]
[1717767311475,2.1606,171.25,171.21,2.161]
[1717767311788,2.1605,171.26,171.22,2.1609]
[1717767311979,2.1603,171.27,171.23,2.1608]
[1717767312179,2.1603,171.27,171.21,4.3221]
[1717767312584,2.1601,171.29,171.22,4.3217]
[1717767312793,2.1601,171.29,171.21,154.98]
[1717767312794,8.7245,171.3,171.26,2.1604]
[1717767313005,2.1601,171.29,171.25,2.1605]
[1717767313301,2.1602,171.28,171.24,2.1606]
[1717767313792,2.1607,171.25,171.19,4.3225]
[1717767313974,2.1607,171.25,171.21,2.161]
[1717767314179,2.1607,171.24,171.2,2.1611]
[1717767314378,12.9606,171.29,171.17,154.98]
[1717767314575,2.1603,171.27,171.23,2.1607]
[1717767315473,4.3203,171.29,171.18,4.3227]
[1717767315474,4.3204,171.28,171.18,4.3227]
[1717767315687,2.1607,171.24,171.18,4.3227]
[1717767315894,2.1606,171.25,171.19,4.3226]
[1717767316102,19.4288,171.29,171.2,4.3223]
[1717767316297,19.4288,171.29,171.18,154.98]
[1717767316298,2.1603,171.27,171.21,4.3221]
[1717767316605,8.6278,171.29,171.25,2.1605]
[1717767317382,2.1602,171.28,171.24,2.1606]
[1717767317597,2.1602,171.28,171.22,4.3218]
[1717767317598,2.1599,171.3,171.2,154.98]
[1717767317780,2.1599,171.3,171.26,2.1604]
[1717767317981,2.1598,171.31,171.27,2.1602]
[1717767318208,6.2472,171.33,171.24,120.0]
[1717767318409,2.1596,171.33,171.29,2.1599]
[1717767318710,2.1595,171.34,171.3,2.1599]
[1717767318925,8.6372,171.36,171.27,4.3206]
[1717767318926,2.1595,171.33,171.29,2.16]
[1717767319213,2.1597,171.32,171.28,2.1601]
[1717767320317,2.1596,171.33,171.29,2.16]
[1717767320984,2.1597,171.32,171.28,2.1601]
[1717767321494,2.1597,171.32,171.26,4.3207]
[1717767321495,2.1599,171.31,171.27,2.1602]
[1717767321811,2.1597,171.32,171.28,2.1601]
[1717767322306,2.1597,171.32,171.23,34.98]
[1717767322307,2.1597,171.32,171.29,2.16]
[1717767322505,2.1596,171.33,171.29,2.16]
[1717767323912,2.1596,171.33,171.3,2.1599]
[1717767324137,2.1594,171.34,171.31,2.1598]
[1717767324302,8.447,171.35,171.31,2.1597]
[1717767324799,2.1592,171.36,171.3,4.3198]
[1717767325003,2.1591,171.37,171.33,2.1595]
[1717767325218,2.1592,171.36,171.33,2.1595]
[1717767325921,2.1591,171.37,171.33,2.1595]
[1717767326130,2.1588,171.39,171.36,2.1591]
[1717767326417,2.1588,171.39,171.31,154.98]
[1717767326418,2.1588,171.39,171.35,2.1592]
[1717767326790,2.1586,171.41,171.34,4.3188]
[1717767327235,2.1586,171.4,171.36,2.1591]
[1717767327595,2.1586,171.4,171.37,2.159]
[1717767327798,2.1586,171.4,171.36,2.1591]
[1717767328796,2.1585,171.41,171.37,2.159]
[1717767329000,2.1584,171.42,171.38,2.1589]
[1717767329534,6.0481,171.44,171.39,2.1587]
[1717767329699,2.1583,171.43,171.39,2.1587]
[1717767330098,2.1583,171.43,171.38,2.1588]
[1717767330401,2.1583,171.43,171.39,2.1588]
[1717767331557,4.56019945,171.52,171.32,122.32421993]
[1717767331558,10.3293,171.48,171.35,154.98]
[1717767331841,2.158,171.45,171.41,2.1584]
[1717767332637,4.3149,171.5,171.43,2.1582]
[1717767332943,2.1578,171.48,171.43,2.1582]
[1717767333531,2.1578,171.47,171.42,2.1583]
[1717767333738,2.1578,171.47,171.42,2.1584]
[1717767333910,2.1577,171.48,171.43,2.1582]
[1717767334110,2.1578,171.47,171.4,4.3173]
[1717767334413,2.158,171.45,171.38,4.3178]
[1717767334616,2.1579,171.46,171.38,4.3178]
[1717767335344,2.1578,171.47,171.43,2.1582]
[1717767335727,2.1579,171.46,171.42,2.1584]
[1717767336538,2.1578,171.47,171.42,2.1584]
[1717767336913,2.1579,171.46,171.42,2.1584]
[1717767337630,2.1578,171.47,171.42,2.1584]
[1717767338137,2.1578,171.47,171.43,2.1582]
[1717767338434,2.1577,171.48,171.44,2.1581]
[1717767338617,2.1577,171.48,171.43,2.1582]
[1717767338813,2.1578,171.47,171.43,2.1582]
[1717767339025,2.1577,171.48,171.43,2.1582]
[1717767339414,2.1578,171.47,171.43,2.1582]
[1717767339826,2.1578,171.47,171.42,2.1583]
[1717767340944,2.1578,171.47,171.43,2.1582]
[1717767341726,2.1577,171.48,171.4,4.3173]
[1717767342244,2.1578,171.47,171.4,4.3173]
[1717767344926,2.1579,171.46,171.4,4.3173]
[1717767345126,2.1579,171.46,171.42,2.1584]
[1717767345527,10.7879,171.49,171.38,35.05]
[1717767345528,4.3156,171.47,171.41,2.1585]
[1717767345743,2.1582,171.44,171.4,2.1586]
[1717767346153,2.1581,171.45,171.41,2.1585]
[1717767347141,2.1581,171.45,171.38,4.3177]
[1717767347343,2.1582,171.44,171.38,4.3177]
[1717767347563,2.1585,171.42,171.38,2.1588]
[1717767347730,2.1583,171.43,171.39,2.1587]
[1717767348239,2.1584,171.42,171.38,2.1588]
[1717767349157,4.3167,171.43,171.36,2.1591]
[1717767349326,4.3169,171.42,171.36,2.1591]
[1717767349527,2.1588,171.39,171.35,2.1592]
[1717767350130,2.1587,171.4,171.36,2.1591]
[1717767350334,2.1588,171.39,171.33,4.319]
[1717767351772,17.3145,171.42,171.33,4.319]
[1717767352062,15.1564,171.42,171.33,4.3191]
[1717767352291,4.3174,171.4,171.34,2.1593]
[1717767352550,4.3174,171.4,171.31,2.1597]
[1717767352551,2.1593,171.35,171.31,2.1597]
[1717767352761,2.1593,171.35,171.28,35.05]
[1717767352762,6.1294,171.35,171.29,2.16]
[1717767353048,2.1594,171.34,171.3,2.1599]
[1717767353251,2.1594,171.34,171.29,2.16]
[1717767353562,8.2887,171.35,171.31,2.1598]
[1717767353746,2.1594,171.34,171.3,2.1599]
[1717767354434,2.1595,171.33,171.29,2.16]
[1717767354759,6.1294,171.35,171.27,2.1602]
[1717767354760,2.1598,171.32,171.27,2.1602]
[1717767355263,2.1598,171.32,171.28,2.1601]
[1717767355544,10.7934273,171.35,171.29,2.16]
[1717767355545,2.1596,171.33,171.29,2.16]
[1717767355855,8.5014,171.33,171.29,2.16]
[1717767356355,6.3418,171.33,171.3,2.1599]
[1717767357636,2.1593,171.35,171.31,2.1598]
[1717767357953,2.1596,171.33,171.29,2.16]
[1717767358448,2.1594,171.34,171.3,2.1598]
[1717767358639,8.3393,171.37,171.33,2.1595]
[1717767358842,2.1591,171.36,171.32,2.1596]
[1717767359157,8.3393,171.37,171.33,2.1595]
[1717767359629,8.3393,171.37,171.32,2.1596]
[1717767359827,2.1592,171.36,171.32,2.1596]
[1717767360332,8.3393,171.37,171.33,2.1595]
[1717767360533,2.1591,171.36,171.32,2.1596]
[1717767360728,6.1802,171.37,171.28,39.3702]
[1717767360948,6.1802,171.37,171.3,2.1598]
[1717767360949,6.0374,171.33,171.3,2.1598]
[1717767361239,8.197,171.33,171.29,2.16]
[1717767361441,2.1597,171.32,171.28,2.1601]
[1717767361952,2.1594,171.34,171.3,2.1599]
[1717767363354,2.1594,171.34,171.31,2.1598]
[1717767363557,6.1773,171.38,171.27,155.05]
[1717767363758,2.1593,171.35,171.31,2.1597]
[1717767364059,6.1773,171.38,171.27,155.05]
[1717767364060,8.6363,171.37,171.27,35.05]
[1717767364237,2.1594,171.34,171.3,2.1598]
[1717767364433,6.8226273,171.37,171.24,35.05]
[1717767364754,2.1597,171.32,171.28,2.1601]
[1717767364956,8.2347,171.32,171.28,2.1601]
[1717767365141,8.2347,171.32,171.25,4.321]
[1717767368468,2.1598,171.31,171.25,4.321]
[1717767368642,6.2369,171.3,171.27,2.1602]
[1717767368966,6.2369,171.3,171.28,2.1601]
[1717767369665,6.2369,171.3,171.27,2.1602]
[1717767370468,8.3968,171.3,171.27,2.1602]
[1717767370643,6.0833,171.3,171.24,2.1606]
[1717767370845,6.4794,171.31,171.25,2.1605]
[1717767370846,8.7843,171.29,171.25,2.1605]
[1717767371044,8.7843,171.29,171.26,2.1604]
[1717767371352,8.7843,171.29,171.18,6.01]
[1717767371353,8.7839,171.32,171.28,2.1601]
[1717767371968,8.3127,171.31,171.28,2.1601]
[1717767372343,8.3127,171.31,171.27,2.1602]
[1717767372544,8.3127,171.31,171.28,2.1602]
[1717767372743,6.1529,171.31,171.28,2.1602]
[1717767373062,2.1596,171.33,171.29,2.16]
[1717767373468,8.3659,171.33,171.29,2.16]
[1717767373651,6.2063,171.33,171.3,2.1598]
[1717767374273,2.1593,171.35,171.31,2.1597]
[1717767374452,6.2063,171.37,171.33,2.1595]
[1717767374651,8.3654,171.37,171.33,2.1595]
[1717767375265,2.1591,171.37,171.33,2.1595]
[1717767375460,19.429,171.4,171.3,4.3198]
[1717767375461,2.1592,171.36,171.32,2.1596]
[1717767375661,2.1593,171.35,171.32,2.1596]
[1717767375875,2.1593,171.35,171.31,2.1597]
[1717767376376,2.1591,171.37,171.33,2.1595]
[1717767376567,2.1592,171.36,171.33,2.1595]
[1717767376751,2.1593,171.35,171.31,2.1597]
[1717767376952,2.1593,171.35,171.32,2.1596]
[1717767377454,2.1592,171.36,171.32,2.1596]
[1717767377653,10.7942,171.39,171.26,155.05]
[1717767377654,2.1591,171.37,171.33,2.1595]
[1717767377872,2.1592,171.36,171.32,2.1596]
[1717767379359,2.1592,171.36,171.3,4.3198]
[1717767379555,2.1592,171.36,171.32,2.1596]
[1717767379859,2.1592,171.36,171.33,2.1595]
[1717767380066,2.1591,171.37,171.33,2.1595]
[1717767380956,2.1592,171.36,171.33,2.1595]
[1717767381150,2.1591,171.37,171.33,2.1595]
[1717767381770,2.1592,171.36,171.32,2.1596]
[1717767381968,10.7941,171.39,171.26,155.05]
[1717767381969,2.1593,171.35,171.26,155.05]
[1717767382160,2.1595,171.34,171.29,4.32]
[1717767382747,8.3929,171.35,171.31,2.1597]
[1717767383348,4.6639273,171.35,171.29,2.16]
[1717767383554,2.1597,171.32,171.28,2.1601]
[1717767384484,8.4969,171.33,171.29,2.16]
[1717767384778,2.1597,171.32,171.29,2.16]
[1717767385565,2.1598,171.31,171.28,2.1601]
[1717767385863,2.1598,171.31,171.27,2.1602]
[1717767386261,4.3185,171.36,171.3,2.1598]
[1717767386465,2.1597,171.32,171.28,2.1601]